[Event "*** Titled Tuesday Blitz"]
[Site "Chess.com"]
[Date "2020.12.01"]
[Round "7"]
[White "JoliyRoger"]
[Black "Skatchkov_V"]
[Result "1-0"]
[WhiteElo "2402"]
[BlackElo "2490"]
[TimeControl "180+1"]
[EndTime "11:15:51 PST"]
[Termination "JoliyRoger won by resignation"]

1. Nf3 {[%clk 0:03:00.9]} 1... Nf6 {[%clk 0:02:59.5]} 2. c4 {[%clk 0:03:00.9]}
2... e6 {[%clk 0:02:59.9]} 3. Nc3 {[%clk 0:03:01]} 3... d5 {[%clk 0:02:57.9]} 4.
cxd5 {[%clk 0:03:01.3]} 4... exd5 {[%clk 0:02:58.8]} 5. d4 {[%clk 0:03:01.7]}
5... c6 {[%clk 0:02:58.7]} 6. Bg5 {[%clk 0:03:02.3]} 6... Be7 {[%clk 0:02:57.8]}
7. Bxf6 {[%clk 0:03:02.6]} 7... Bxf6 {[%clk 0:02:57.3]} 8. e3 {[%clk 0:03:03.5]}
8... O-O {[%clk 0:02:57.6]} 9. Bd3 {[%clk 0:03:04]} 9... Bg4 {[%clk 0:02:56.3]}
10. Qc2 {[%clk 0:03:04.6]} 10... h6 {[%clk 0:02:56.4]} 11. h3 {[%clk 0:03:04.7]}
11... Bxf3 {[%clk 0:02:55]} 12. gxf3 {[%clk 0:03:05.4]} 12... Nd7 {[%clk
0:02:54.4]} 13. O-O-O {[%clk 0:03:05.6]} 13... b5 {[%clk 0:02:52.3]} 14. Kb1
{[%clk 0:03:06.1]} 14... a5 {[%clk 0:02:51.5]} 15. Ne2 {[%clk 0:03:05.4]} 15...
Qb6 {[%clk 0:02:44.6]} 16. Bf5 {[%clk 0:03:01.6]} 16... Rfd8 {[%clk 0:02:40.2]}
17. Bxd7 {[%clk 0:02:58.1]} 17... Rxd7 {[%clk 0:02:41.1]} 18. Nf4 {[%clk
0:02:57.2]} 18... Be7 {[%clk 0:02:17.1]} 19. Rhg1 {[%clk 0:02:54.4]} 19... Bf8
{[%clk 0:02:17.1]} 20. Nd3 {[%clk 0:02:49.2]} 20... Rd6 {[%clk 0:02:13.1]} 21.
Ne5 {[%clk 0:02:39.7]} 21... Rc8 {[%clk 0:01:56.6]} 22. Nd3 {[%clk 0:02:28.1]}
22... Rf6 {[%clk 0:01:54.7]} 23. Rg3 {[%clk 0:02:25]} 23... Rc7 {[%clk
0:01:43.6]} 24. Rc1 {[%clk 0:02:24.7]} 24... a4 {[%clk 0:01:25.3]} 25. f4 {[%clk
0:02:18.7]} 25... Ra7 {[%clk 0:01:14.9]} 26. Ne5 {[%clk 0:02:17.2]} 26... b4
{[%clk 0:01:13.2]} 27. Ng4 {[%clk 0:02:16.4]} 27... Rd6 {[%clk 0:01:06.5]} 28.
Qf5 {[%clk 0:02:16.7]} 28... Qb5 {[%clk 0:00:56.7]} 29. Ne5 {[%clk 0:01:23.4]}
29... Qe2 {[%clk 0:00:50.3]} 30. Qc2 {[%clk 0:01:21.1]} 30... Qb5 {[%clk
0:00:49.8]} 31. Qd3 {[%clk 0:01:20.8]} 31... Qb6 {[%clk 0:00:44]} 32. Ng4 {[%clk
0:01:15.9]} 32... Kh8 {[%clk 0:00:43.4]} 33. Ne5 {[%clk 0:01:15]} 33... b3
{[%clk 0:00:16.7]} 34. a3 {[%clk 0:01:13.9]} 34... Rf6 {[%clk 0:00:16.5]} 35.
Rgg1 {[%clk 0:01:07.5]} 35... c5 {[%clk 0:00:16.4]} 36. dxc5 {[%clk 0:01:05.2]}
36... Bxc5 {[%clk 0:00:17.3]} 37. Qxd5 {[%clk 0:01:05.3]} 37... Bf8 {[%clk
0:00:16]} 38. Rc8 {[%clk 0:01:04.1]} 38... Kg8 {[%clk 0:00:12.2]} 39. Nd7 {[%clk
0:00:46.6]} 39... Rxd7 {[%clk 0:00:09.1]} 40. Qxd7 {[%clk 0:00:47.3]} 40... Rd6
{[%clk 0:00:02.1]} 41. Qe8 {[%clk 0:00:43.4]} 1-0

[Event "*** Titled Tuesday Blitz"]
[Site "Chess.com"]
[Date "2020.12.01"]
[Round "7"]
[White "Shuvalov"]
[Black "Borsuk_Konstantin"]
[Result "1-0"]
[WhiteElo "2449"]
[BlackElo "2549"]
[TimeControl "180+1"]
[EndTime "11:15:52 PST"]
[Termination "Shuvalov won by resignation"]

1. Nf3 {[%clk 0:02:56]} 1... b6 {[%clk 0:02:59.7]} 2. e4 {[%clk 0:02:54.6]} 2...
c5 {[%clk 0:02:59.6]} 3. d4 {[%clk 0:02:54]} 3... cxd4 {[%clk 0:02:59.9]} 4.
Nxd4 {[%clk 0:02:54.9]} 4... Bb7 {[%clk 0:02:59.4]} 5. Nc3 {[%clk 0:02:54.5]}
5... a6 {[%clk 0:02:59.2]} 6. Bd3 {[%clk 0:02:51.1]} 6... Nc6 {[%clk 0:02:57.8]}
7. Be3 {[%clk 0:02:50.3]} 7... e6 {[%clk 0:02:54.5]} 8. O-O {[%clk 0:02:49.5]}
8... b5 {[%clk 0:02:53]} 9. Re1 {[%clk 0:02:46.5]} 9... Nge7 {[%clk 0:02:51.5]}
10. f4 {[%clk 0:02:38.6]} 10... Nxd4 {[%clk 0:02:49.3]} 11. Bxd4 {[%clk
0:02:38.4]} 11... Nc6 {[%clk 0:02:49.9]} 12. Bf2 {[%clk 0:02:37.2]} 12... d6
{[%clk 0:02:47.4]} 13. f5 {[%clk 0:02:33.9]} 13... Ne5 {[%clk 0:02:40.4]} 14.
Ne2 {[%clk 0:02:07.8]} 14... Qg5 {[%clk 0:02:32.2]} 15. Nd4 {[%clk 0:02:03.1]}
15... Ng4 {[%clk 0:02:08.9]} 16. Nf3 {[%clk 0:01:41.8]} 16... Qh6 {[%clk
0:02:04.8]} 17. fxe6 {[%clk 0:01:34.4]} 17... fxe6 {[%clk 0:02:02.3]} 18. Bg3
{[%clk 0:01:27]} 18... e5 {[%clk 0:01:46.8]} 19. Nh4 {[%clk 0:01:04.6]} 19...
Qe6 {[%clk 0:01:21.9]} 20. Nf5 {[%clk 0:01:02.9]} 20... Nf6 {[%clk 0:01:22.5]}
21. a4 {[%clk 0:01:00.6]} 21... g6 {[%clk 0:01:10.2]} 22. Nh4 {[%clk 0:00:47]}
22... b4 {[%clk 0:01:01.1]} 23. b3 {[%clk 0:00:46.8]} 23... Bh6 {[%clk
0:00:49.4]} 24. Bc4 {[%clk 0:00:44.6]} 24... Qd7 {[%clk 0:00:40.2]} 25. Qd3
{[%clk 0:00:35.8]} 25... Ke7 {[%clk 0:00:33.5]} 26. Rad1 {[%clk 0:00:33.5]}
26... Rhf8 {[%clk 0:00:30.6]} 27. Nf3 {[%clk 0:00:33.1]} 27... Qc7 {[%clk
0:00:29.6]} 28. Bh4 {[%clk 0:00:30.3]} 28... Bf4 {[%clk 0:00:24.6]} 29. Kh1
{[%clk 0:00:25.1]} 29... Rad8 {[%clk 0:00:21.5]} 30. Ng5 {[%clk 0:00:21]} 30...
Bxg5 {[%clk 0:00:16]} 31. Bxg5 {[%clk 0:00:21.9]} 31... Ke8 {[%clk 0:00:16.5]}
32. Rf1 {[%clk 0:00:16.3]} 32... Nxe4 {[%clk 0:00:15.2]} 33. Bxd8 {[%clk
0:00:15]} 33... Nf2+ {[%clk 0:00:14.1]} 34. Rxf2 {[%clk 0:00:14.2]} 34... Rxf2
{[%clk 0:00:14.7]} 35. Bxc7 {[%clk 0:00:13]} 1-0

[Event "*** Titled Tuesday Blitz"]
[Site "Chess.com"]
[Date "2020.12.01"]
[Round "7"]
[White "Rital44"]
[Black "paulrusan"]
[Result "1-0"]
[WhiteElo "2457"]
[BlackElo "2258"]
[TimeControl "180+1"]
[EndTime "11:15:53 PST"]
[Termination "Rital44 won on time"]

1. e4 {[%clk 0:03:00.6]} 1... g6 {[%clk 0:02:59.7]} 2. h4 {[%clk 0:02:57]} 2...
h5 {[%clk 0:02:58.9]} 3. Nf3 {[%clk 0:02:55.7]} 3... Bg7 {[%clk 0:02:58.8]} 4.
Bc4 {[%clk 0:02:56.3]} 4... d6 {[%clk 0:02:57.7]} 5. Nc3 {[%clk 0:02:56]} 5...
Nf6 {[%clk 0:02:56.6]} 6. Ng5 {[%clk 0:02:55.9]} 6... O-O {[%clk 0:02:55.7]} 7.
d3 {[%clk 0:02:56]} 7... c5 {[%clk 0:02:55.4]} 8. Ne2 {[%clk 0:02:53.3]} 8...
Nc6 {[%clk 0:02:54.6]} 9. Nf4 {[%clk 0:02:52.4]} 9... e6 {[%clk 0:02:50.5]} 10.
Bb3 {[%clk 0:02:50.9]} 10... d5 {[%clk 0:02:48.8]} 11. O-O {[%clk 0:02:39.6]}
11... Qd6 {[%clk 0:02:40.5]} 12. c3 {[%clk 0:02:35.2]} 12... Bd7 {[%clk
0:02:34.8]} 13. Re1 {[%clk 0:02:33.6]} 13... b5 {[%clk 0:02:33.6]} 14. a4 {[%clk
0:02:24.7]} 14... a6 {[%clk 0:02:32.7]} 15. Qf3 {[%clk 0:01:59.1]} 15... c4
{[%clk 0:02:30.3]} 16. dxc4 {[%clk 0:01:58.6]} 16... bxc4 {[%clk 0:02:28.1]} 17.
Bc2 {[%clk 0:01:58.2]} 17... d4 {[%clk 0:01:55.2]} 18. Qg3 {[%clk 0:01:47.8]}
18... d3 {[%clk 0:01:49.6]} 19. Bd1 {[%clk 0:01:47.1]} 19... e5 {[%clk
0:01:39.2]} 20. Nd5 {[%clk 0:01:40.9]} 20... Nxd5 {[%clk 0:01:37.7]} 21. exd5
{[%clk 0:01:41.8]} 21... Qxd5 {[%clk 0:01:23.1]} 22. Bf3 {[%clk 0:01:38.4]}
22... d2 {[%clk 0:01:22.9]} 23. Bxd2 {[%clk 0:01:38]} 23... Qxd2 {[%clk
0:01:22.3]} 24. Rad1 {[%clk 0:01:38.9]} 24... Qf4 {[%clk 0:01:18.8]} 25. Qxf4
{[%clk 0:01:38]} 25... exf4 {[%clk 0:01:19]} 26. Rxd7 {[%clk 0:01:38.8]} 26...
Rac8 {[%clk 0:01:17.3]} 27. Bd5 {[%clk 0:01:36]} 27... Ne5 {[%clk 0:01:13.6]}
28. Rxe5 {[%clk 0:01:35.8]} 28... Bxe5 {[%clk 0:01:13]} 29. Nxf7 {[%clk
0:01:36.7]} 29... Rxf7 {[%clk 0:01:08.4]} 30. Bxf7+ {[%clk 0:01:36.1]} 30... Kf8
{[%clk 0:00:52]} 31. Bxg6 {[%clk 0:01:35.6]} 31... Rb8 {[%clk 0:00:52]} 32. Rf7+
{[%clk 0:01:27.9]} 32... Kg8 {[%clk 0:00:50.9]} 33. Rf5 {[%clk 0:01:28.4]} 33...
Bd6 {[%clk 0:00:43]} 34. Bf7+ {[%clk 0:01:27.8]} 34... Kg7 {[%clk 0:00:41]} 35.
Bxc4 {[%clk 0:01:28.7]} 35... Rxb2 {[%clk 0:00:39.4]} 36. Rd5 {[%clk 0:01:21.8]}
36... Bb8 {[%clk 0:00:34]} 37. Rxh5 {[%clk 0:01:16.3]} 37... Rb1+ {[%clk
0:00:26.1]} 38. Kh2 {[%clk 0:01:15.9]} 38... f3+ {[%clk 0:00:26.6]} 39. g3
{[%clk 0:01:16.5]} 39... Kg6 {[%clk 0:00:18.1]} 40. Rg5+ {[%clk 0:01:15.8]}
40... Kf6 {[%clk 0:00:18.2]} 41. Rg8 {[%clk 0:01:13.9]} 41... Bd6 {[%clk
0:00:16.6]} 42. Rd8 {[%clk 0:01:10.9]} 42... Ke7 {[%clk 0:00:16.1]} 43. Ra8
{[%clk 0:01:08.3]} 43... Rb2 {[%clk 0:00:15.6]} 44. Ra7+ {[%clk 0:01:08.2]}
44... Ke8 {[%clk 0:00:15]} 45. Rxa6 {[%clk 0:01:03.3]} 45... Rxf2+ {[%clk
0:00:13.1]} 46. Kh3 {[%clk 0:01:03.8]} 46... Ke7 {[%clk 0:00:11.2]} 47. Ra7+
{[%clk 0:01:02.7]} 47... Kf6 {[%clk 0:00:11.5]} 48. Rf7+ {[%clk 0:01:02.4]}
48... Ke5 {[%clk 0:00:11.5]} 49. Kg4 {[%clk 0:01:02.8]} 49... Rc2 {[%clk
0:00:03.8]} 50. Rxf3 {[%clk 0:01:02.8]} 50... Ke4 {[%clk 0:00:04.3]} 51. Bd3+
{[%clk 0:01:01]} 1-0

[Event "*** Titled Tuesday Blitz"]
[Site "Chess.com"]
[Date "2020.12.01"]
[Round "7"]
[White "Qvalda"]
[Black "VladimirBugayev"]
[Result "1-0"]
[WhiteElo "2433"]
[BlackElo "2285"]
[TimeControl "180+1"]
[EndTime "11:15:54 PST"]
[Termination "Qvalda won by checkmate"]

1. e4 {[%clk 0:02:51.4]} 1... c6 {[%clk 0:02:59.1]} 2. Bc4 {[%clk 0:02:47.8]}
2... d5 {[%clk 0:02:58.4]} 3. Bb3 {[%clk 0:02:48]} 3... g6 {[%clk 0:02:55.4]} 4.
h4 {[%clk 0:02:44]} 4... h5 {[%clk 0:02:52.7]} 5. d4 {[%clk 0:02:38.3]} 5... Bg7
{[%clk 0:02:48.8]} 6. exd5 {[%clk 0:02:38]} 6... cxd5 {[%clk 0:02:47.9]} 7. Nc3
{[%clk 0:02:38.3]} 7... Nf6 {[%clk 0:02:38.7]} 8. Bg5 {[%clk 0:02:37]} 8... e6
{[%clk 0:02:25.2]} 9. Qd2 {[%clk 0:02:30.7]} 9... O-O {[%clk 0:02:15.7]} 10. f3
{[%clk 0:02:28.8]} 10... a6 {[%clk 0:02:03.5]} 11. g4 {[%clk 0:02:27.7]} 11...
Qc7 {[%clk 0:01:47.7]} 12. O-O-O {[%clk 0:02:19.7]} 12... b5 {[%clk 0:01:46.5]}
13. Bxf6 {[%clk 0:02:13.8]} 13... Bxf6 {[%clk 0:01:45.4]} 14. gxh5 {[%clk
0:02:13.4]} 14... b4 {[%clk 0:01:31.8]} 15. Nce2 {[%clk 0:02:00.3]} 15... a5
{[%clk 0:01:29]} 16. Ba4 {[%clk 0:01:52.3]} 16... Bd7 {[%clk 0:01:26.6]} 17.
Bxd7 {[%clk 0:01:47.9]} 17... Nxd7 {[%clk 0:01:26.5]} 18. hxg6 {[%clk
0:01:47.4]} 18... fxg6 {[%clk 0:01:16.6]} 19. Qh6 {[%clk 0:01:38.3]} 19... Kf7
{[%clk 0:01:12.6]} 20. h5 {[%clk 0:01:24.1]} 20... g5 {[%clk 0:00:36.1]} 21.
Qh7+ {[%clk 0:01:08.2]} 21... Ke8 {[%clk 0:00:27.9]} 22. Kb1 {[%clk 0:00:58.5]}
22... a4 {[%clk 0:00:22.9]} 23. Nh3 {[%clk 0:00:53.5]} 23... b3 {[%clk
0:00:21.4]} 24. cxb3 {[%clk 0:00:45]} 24... a3 {[%clk 0:00:20]} 25. Qg6+ {[%clk
0:00:27]} 25... Ke7 {[%clk 0:00:18]} 26. Nc3 {[%clk 0:00:15.5]} 26... Rg8 {[%clk
0:00:12.9]} 27. Nxd5+ {[%clk 0:00:14.9]} 27... exd5 {[%clk 0:00:11.3]} 28. Rhe1+
{[%clk 0:00:15]} 28... Kd6 {[%clk 0:00:11]} 29. Qf5 {[%clk 0:00:08.9]} 29...
Rae8 {[%clk 0:00:05.7]} 30. h6 {[%clk 0:00:06.6]} 30... Rxe1 {[%clk 0:00:05]}
31. Rxe1 {[%clk 0:00:07.4]} 31... axb2 {[%clk 0:00:04.5]} 32. Qe6# {[%clk
0:00:06.5]} 1-0

[Event "*** Titled Tuesday Blitz"]
[Site "Chess.com"]
[Date "2020.12.01"]
[Round "7"]
[White "Artyom_ChessMate"]
[Black "Matibar"]
[Result "1/2-1/2"]
[WhiteElo "2572"]
[BlackElo "2749"]
[TimeControl "180+1"]
[EndTime "11:15:55 PST"]
[Termination "Game drawn by repetition"]

1. e4 {[%clk 0:03:00.9]} 1... c6 {[%clk 0:02:34.8]} 2. d4 {[%clk 0:02:59.3]}
2... d5 {[%clk 0:02:34.1]} 3. exd5 {[%clk 0:03:00.2]} 3... cxd5 {[%clk
0:02:34.1]} 4. Bd3 {[%clk 0:03:00.1]} 4... Nc6 {[%clk 0:02:32.8]} 5. c3 {[%clk
0:03:00.2]} 5... g6 {[%clk 0:02:31.5]} 6. Nf3 {[%clk 0:02:41.3]} 6... Nh6 {[%clk
0:02:26.5]} 7. Bf4 {[%clk 0:02:35.5]} 7... f6 {[%clk 0:02:18.8]} 8. O-O {[%clk
0:02:30.6]} 8... Nf7 {[%clk 0:02:17.6]} 9. h4 {[%clk 0:02:04.6]} 9... Bg7 {[%clk
0:02:16]} 10. Re1 {[%clk 0:01:41.2]} 10... Bg4 {[%clk 0:02:13]} 11. Be2 {[%clk
0:01:32.9]} 11... O-O {[%clk 0:02:11.8]} 12. Bg3 {[%clk 0:01:25.1]} 12... Nd6
{[%clk 0:01:19.9]} 13. Nbd2 {[%clk 0:01:18.7]} 13... Nf5 {[%clk 0:01:19.8]} 14.
Bh2 {[%clk 0:01:12.2]} 14... Kh8 {[%clk 0:01:12.6]} 15. Qb3 {[%clk 0:01:09.7]}
15... Na5 {[%clk 0:01:02.2]} 16. Qb4 {[%clk 0:00:55.1]} 16... Rc8 {[%clk
0:00:57.2]} 17. Ng5 {[%clk 0:00:26.6]} 17... fxg5 {[%clk 0:00:48.3]} 18. Bxg4
{[%clk 0:00:25.8]} 18... Nc6 {[%clk 0:00:45.1]} 19. Qxb7 {[%clk 0:00:22.3]}
19... gxh4 {[%clk 0:00:45.4]} 20. Nf3 {[%clk 0:00:18]} 20... Bf6 {[%clk
0:00:44.1]} 21. Bxf5 {[%clk 0:00:17.3]} 21... gxf5 {[%clk 0:00:45]} 22. Ne5
{[%clk 0:00:12.9]} 22... Nxe5 {[%clk 0:00:35.9]} 23. Bxe5 {[%clk 0:00:13.8]}
23... Bxe5 {[%clk 0:00:30.7]} 24. Rxe5 {[%clk 0:00:14.7]} 24... Rc7 {[%clk
0:00:31.2]} 25. Qxd5 {[%clk 0:00:13.8]} 25... Rd7 {[%clk 0:00:30.2]} 26. Qc5
{[%clk 0:00:12.9]} 26... Rg8 {[%clk 0:00:29.7]} 27. Rxf5 {[%clk 0:00:11.7]}
27... e6 {[%clk 0:00:29.7]} 28. Qe5+ {[%clk 0:00:11.5]} 28... Rdg7 {[%clk
0:00:30]} 29. Rf7 {[%clk 0:00:10]} 29... h3 {[%clk 0:00:28.1]} 30. g3 {[%clk
0:00:09.7]} 30... Qa8 {[%clk 0:00:27.7]} 31. f3 {[%clk 0:00:06.8]} 31... Qe8
{[%clk 0:00:25.2]} 32. Rxg7 {[%clk 0:00:05.9]} 32... Rxg7 {[%clk 0:00:26.1]} 33.
Rf1 {[%clk 0:00:06.2]} 33... Qa4 {[%clk 0:00:23]} 34. Kh2 {[%clk 0:00:06.2]}
34... Qxa2 {[%clk 0:00:22.9]} 35. Rf2 {[%clk 0:00:06.5]} 35... Qb1 {[%clk
0:00:21.5]} 36. Qb8+ {[%clk 0:00:05.8]} 36... Rg8 {[%clk 0:00:21.3]} 37. Qe5+
{[%clk 0:00:06.1]} 37... Rg7 {[%clk 0:00:21.8]} 38. Qb8+ {[%clk 0:00:06.2]}
38... Rg8 {[%clk 0:00:22.3]} 39. Qe5+ {[%clk 0:00:06.8]} 39... Rg7 {[%clk
0:00:22.9]} 1/2-1/2

[Event "*** Titled Tuesday Blitz"]
[Site "Chess.com"]
[Date "2020.12.01"]
[Round "7"]
[White "emiliochess"]
[Black "beto-betun"]
[Result "1-0"]
[WhiteElo "2349"]
[BlackElo "2201"]
[TimeControl "180+1"]
[EndTime "11:15:57 PST"]
[Termination "emiliochess won by resignation"]

1. d4 {[%clk 0:03:00.9]} 1... Nf6 {[%clk 0:02:50.7]} 2. Bf4 {[%clk 0:03:01]}
2... d6 {[%clk 0:02:48.9]} 3. e3 {[%clk 0:03:01]} 3... g6 {[%clk 0:02:48.8]} 4.
Nf3 {[%clk 0:03:00.9]} 4... Bg7 {[%clk 0:02:49]} 5. Be2 {[%clk 0:03:00.8]} 5...
O-O {[%clk 0:02:49.4]} 6. h3 {[%clk 0:03:01]} 6... c5 {[%clk 0:02:48.8]} 7. O-O
{[%clk 0:03:01.1]} 7... cxd4 {[%clk 0:02:48.2]} 8. exd4 {[%clk 0:03:02]} 8...
Nc6 {[%clk 0:02:47.9]} 9. c3 {[%clk 0:03:02.2]} 9... Re8 {[%clk 0:02:30]} 10.
Na3 {[%clk 0:03:00.5]} 10... b6 {[%clk 0:02:20.7]} 11. Bh2 {[%clk 0:02:53.6]}
11... Bb7 {[%clk 0:02:20.4]} 12. Qb3 {[%clk 0:02:51.5]} 12... Na5 {[%clk
0:02:07.4]} 13. Qb4 {[%clk 0:02:39.4]} 13... Nd5 {[%clk 0:01:56.2]} 14. Qa4
{[%clk 0:02:37.8]} 14... Bc6 {[%clk 0:01:43.9]} 15. Qc2 {[%clk 0:02:37.4]} 15...
Rc8 {[%clk 0:01:40.3]} 16. Rad1 {[%clk 0:02:30.6]} 16... Nf6 {[%clk 0:01:36.3]}
17. Nd2 {[%clk 0:02:23.7]} 17... Qd7 {[%clk 0:01:31.2]} 18. Rfe1 {[%clk
0:02:18.1]} 18... Qb7 {[%clk 0:01:27.7]} 19. Bf3 {[%clk 0:02:17.8]} 19... Bxf3
{[%clk 0:01:27.5]} 20. Nxf3 {[%clk 0:02:18.7]} 20... Nc6 {[%clk 0:01:24.9]} 21.
Qb3 {[%clk 0:02:14.7]} 21... Na5 {[%clk 0:01:21.5]} 22. Qc2 {[%clk 0:02:12.4]}
22... Nc6 {[%clk 0:01:21.4]} 23. Re2 {[%clk 0:02:04.7]} 23... a6 {[%clk
0:01:15.9]} 24. Rde1 {[%clk 0:02:03.4]} 24... b5 {[%clk 0:01:09.9]} 25. Nb1
{[%clk 0:01:47]} 25... Na5 {[%clk 0:00:43.7]} 26. a3 {[%clk 0:01:44]} 26... Nc4
{[%clk 0:00:42.3]} 27. Nbd2 {[%clk 0:01:43.6]} 27... Kf8 {[%clk 0:00:36]} 28.
Nxc4 {[%clk 0:01:42.8]} 28... Rxc4 {[%clk 0:00:36.7]} 29. Nd2 {[%clk 0:01:42.6]}
29... Rc7 {[%clk 0:00:35.8]} 30. Qb3 {[%clk 0:01:41]} 30... Qc8 {[%clk
0:00:34.2]} 31. Ne4 {[%clk 0:01:39.6]} 31... Nxe4 {[%clk 0:00:33.3]} 32. Rxe4
{[%clk 0:01:40.5]} 32... Qf5 {[%clk 0:00:28.1]} 33. Bxd6 {[%clk 0:01:36.5]}
33... Rd7 {[%clk 0:00:28.6]} 34. Bg3 {[%clk 0:01:36.1]} 34... e6 {[%clk
0:00:24.6]} 35. Qb4+ {[%clk 0:01:27.2]} 35... Kg8 {[%clk 0:00:24.4]} 36. Qa5
{[%clk 0:01:27.8]} 36... Ra8 {[%clk 0:00:15.9]} 37. Qb6 {[%clk 0:01:25.8]} 37...
Qd5 {[%clk 0:00:15.7]} 38. Be5 {[%clk 0:01:23.4]} 38... h6 {[%clk 0:00:15.3]}
39. Bxg7 {[%clk 0:01:23.2]} 39... Kxg7 {[%clk 0:00:16.2]} 40. Re5 {[%clk
0:01:23.9]} 40... Qb7 {[%clk 0:00:16.4]} 41. Qxb7 {[%clk 0:01:22.1]} 41... Rxb7
{[%clk 0:00:17.3]} 42. f4 {[%clk 0:01:22.1]} 42... Rd7 {[%clk 0:00:17.2]} 43. g4
{[%clk 0:01:22]} 43... Rc8 {[%clk 0:00:12.6]} 44. Kf2 {[%clk 0:01:20.9]} 44...
Rcc7 {[%clk 0:00:12.8]} 45. Kf3 {[%clk 0:01:20.5]} 45... Rd6 {[%clk 0:00:12.5]}
46. f5 {[%clk 0:01:20.3]} 46... gxf5 {[%clk 0:00:12.3]} 47. gxf5 {[%clk
0:01:21.2]} 47... exf5 {[%clk 0:00:11.7]} 48. Rxf5 {[%clk 0:01:22.1]} 48... Rf6
{[%clk 0:00:12]} 49. Kf4 {[%clk 0:01:22.3]} 49... Rxf5+ {[%clk 0:00:12.1]} 50.
Kxf5 {[%clk 0:01:23.2]} 50... Rd7 {[%clk 0:00:11]} 51. Rg1+ {[%clk 0:01:22.4]}
51... Kf8 {[%clk 0:00:10.7]} 52. Ke5 {[%clk 0:01:23.3]} 52... Re7+ {[%clk
0:00:09.9]} 53. Kd6 {[%clk 0:01:23.8]} 53... Re2 {[%clk 0:00:10.4]} 54. Rb1
{[%clk 0:01:16.8]} 54... Rh2 {[%clk 0:00:10.1]} 55. d5 {[%clk 0:01:17.2]} 55...
Rxh3 {[%clk 0:00:09.9]} 56. Kc7 {[%clk 0:01:17.7]} 56... Rd3 {[%clk 0:00:08]}
57. d6 {[%clk 0:01:18]} 57... h5 {[%clk 0:00:06.4]} 58. d7 {[%clk 0:01:18]}
58... Ke7 {[%clk 0:00:06.7]} 59. Re1+ {[%clk 0:01:17.4]} 59... Kf8 {[%clk
0:00:07.2]} 60. d8=Q+ {[%clk 0:01:18.3]} 60... Rxd8 {[%clk 0:00:07.4]} 61. Kxd8
{[%clk 0:01:19.2]} 61... Kg7 {[%clk 0:00:07.5]} 62. Ke7 {[%clk 0:01:19.4]} 62...
Kg6 {[%clk 0:00:08.4]} 63. Rg1+ {[%clk 0:01:19.2]} 1-0

[Event "*** Titled Tuesday Blitz"]
[Site "Chess.com"]
[Date "2020.12.01"]
[Round "7"]
[White "FearNoEvil12"]
[Black "Mbneu"]
[Result "1-0"]
[WhiteElo "2177"]
[BlackElo "2314"]
[TimeControl "180+1"]
[EndTime "11:15:58 PST"]
[Termination "FearNoEvil12 won by resignation"]

1. e4 {[%clk 0:03:00.9]} 1... c5 {[%clk 0:02:53.5]} 2. Nc3 {[%clk 0:02:59.5]}
2... a6 {[%clk 0:02:52]} 3. a4 {[%clk 0:02:57.2]} 3... Nc6 {[%clk 0:02:49]} 4.
f4 {[%clk 0:02:57.6]} 4... Nd4 {[%clk 0:02:45]} 5. Nf3 {[%clk 0:02:57.7]} 5...
g6 {[%clk 0:02:37.6]} 6. Bc4 {[%clk 0:02:56.1]} 6... Bg7 {[%clk 0:02:36.6]} 7.
d3 {[%clk 0:02:54.8]} 7... e6 {[%clk 0:02:36.5]} 8. f5 {[%clk 0:02:54.3]} 8...
Nxf3+ {[%clk 0:02:29.9]} 9. Qxf3 {[%clk 0:02:52.8]} 9... Qh4+ {[%clk 0:02:28.6]}
10. g3 {[%clk 0:02:50.2]} 10... Qh3 {[%clk 0:02:28.3]} 11. fxe6 {[%clk
0:02:45.9]} 11... dxe6 {[%clk 0:02:05.7]} 12. Rf1 {[%clk 0:02:43.5]} 12... f5
{[%clk 0:02:04.7]} 13. Be3 {[%clk 0:02:40.3]} 13... Nf6 {[%clk 0:01:59.8]} 14.
O-O-O {[%clk 0:02:38.8]} 14... O-O {[%clk 0:01:49.6]} 15. Bxc5 {[%clk
0:02:36.5]} 15... Rf7 {[%clk 0:01:49.1]} 16. exf5 {[%clk 0:02:35.5]} 16... gxf5
{[%clk 0:01:48.7]} 17. Rde1 {[%clk 0:02:28]} 17... Ng4 {[%clk 0:01:43]} 18. d4
{[%clk 0:02:05.3]} 18... Nxh2 {[%clk 0:01:38.8]} 19. Qh1 {[%clk 0:01:53.9]}
19... Qh6+ {[%clk 0:01:35.7]} 20. Kb1 {[%clk 0:01:51.1]} 20... Nxf1 {[%clk
0:01:36.2]} 21. Qxf1 {[%clk 0:01:50]} 21... Bd7 {[%clk 0:01:31.2]} 22. Qf3
{[%clk 0:01:44.1]} 22... Bc6 {[%clk 0:01:27.6]} 23. Qf2 {[%clk 0:01:39.7]} 23...
Re8 {[%clk 0:01:26.3]} 24. d5 {[%clk 0:01:36.8]} 24... exd5 {[%clk 0:01:24.5]}
25. Nxd5 {[%clk 0:01:34.8]} 25... Rxe1+ {[%clk 0:01:14.3]} 26. Qxe1 {[%clk
0:01:33.7]} 26... Kh8 {[%clk 0:01:14.8]} 27. Nf4 {[%clk 0:01:29.4]} 27... Rc7
{[%clk 0:01:08.2]} 28. Ne6 {[%clk 0:01:26.7]} 28... Qf6 {[%clk 0:01:04.7]} 29.
Nxg7 {[%clk 0:01:24.9]} 29... Rxg7 {[%clk 0:01:04.5]} 30. c3 {[%clk 0:01:22.3]}
30... h6 {[%clk 0:01:02.7]} 31. Bd4 {[%clk 0:01:20.6]} 31... Qg6 {[%clk
0:01:02.2]} 32. Qe5 {[%clk 0:01:13.3]} 32... Kh7 {[%clk 0:01:01.4]} 33. Be6
{[%clk 0:01:07.5]} 33... Be4+ {[%clk 0:00:58]} 34. Ka1 {[%clk 0:00:56.2]} 34...
Qxg3 {[%clk 0:00:58.1]} 35. Bxf5+ {[%clk 0:00:53.1]} 35... Bxf5 {[%clk
0:00:56.4]} 36. Qxf5+ {[%clk 0:00:53.5]} 36... Qg6 {[%clk 0:00:56.6]} 37. Qf3
{[%clk 0:00:45.1]} 37... Rf7 {[%clk 0:00:55.3]} 38. Qe3 {[%clk 0:00:44.1]} 38...
Qg5 {[%clk 0:00:52.4]} 39. Qe4+ {[%clk 0:00:42.5]} 39... Qf5 {[%clk 0:00:51.3]}
40. Qe8 {[%clk 0:00:40.4]} 40... Kg6 {[%clk 0:00:47.6]} 41. Ka2 {[%clk
0:00:32.9]} 41... Qd5+ {[%clk 0:00:46.1]} 42. Ka3 {[%clk 0:00:32.1]} 42... Qd6+
{[%clk 0:00:44.8]} 43. b4 {[%clk 0:00:31.3]} 43... Qd5 {[%clk 0:00:44.2]} 44.
Qg8+ {[%clk 0:00:29.2]} 44... Kh5 {[%clk 0:00:43.1]} 45. Qg3 {[%clk 0:00:27.4]}
45... Qf5 {[%clk 0:00:42.2]} 46. Qh2+ {[%clk 0:00:22.1]} 46... Kg6 {[%clk
0:00:42.1]} 47. Qg3+ {[%clk 0:00:22]} 47... Kh7 {[%clk 0:00:39.5]} 48. Qb8
{[%clk 0:00:21.3]} 48... h5 {[%clk 0:00:37.8]} 49. Qh8+ {[%clk 0:00:19.1]} 49...
Kg6 {[%clk 0:00:38]} 50. Qg8+ {[%clk 0:00:18.7]} 50... Kh6 {[%clk 0:00:33.4]}
51. Be3+ {[%clk 0:00:16]} 1-0